[Event "*** SCC Grand Prix: Titled Tuesday Blitz"]
[Site "Chess.com"]
[Date "2020.10.13"]
[Round "9"]
[White "Supernotar"]
[Black "amintabatabaei"]
[Result "1/2-1/2"]
[WhiteElo "2848"]
[BlackElo "2916"]
[TimeControl "180+1"]
[EndTime "11:45:43 PDT"]
[Termination "Game drawn by repetition"]

1. d4 {[%clk 0:03:00.9]} 1... Nf6 {[%clk 0:02:59.7]} 2. c4 {[%clk 0:03:01]} 2...
e6 {[%clk 0:02:59.7]} 3. Nf3 {[%clk 0:03:01.1]} 3... d5 {[%clk 0:02:59.8]} 4. e3
{[%clk 0:03:01.1]} 4... b6 {[%clk 0:02:57.3]} 5. Nbd2 {[%clk 0:03:01]} 5... Bb7
{[%clk 0:02:57.4]} 6. Bd3 {[%clk 0:03:01.3]} 6... Nbd7 {[%clk 0:02:57.6]} 7. O-O
{[%clk 0:03:01.5]} 7... Bd6 {[%clk 0:02:57.9]} 8. b3 {[%clk 0:03:01.5]} 8... O-O
{[%clk 0:02:57.7]} 9. Bb2 {[%clk 0:03:01.9]} 9... Qe7 {[%clk 0:02:56.2]} 10. Qe2
{[%clk 0:03:00.9]} 10... a5 {[%clk 0:02:54.9]} 11. e4 {[%clk 0:02:59.5]} 11...
dxe4 {[%clk 0:02:51]} 12. Nxe4 {[%clk 0:02:59.7]} 12... Nxe4 {[%clk 0:02:51.5]}
13. Bxe4 {[%clk 0:03:00.6]} 13... Bxe4 {[%clk 0:02:51.4]} 14. Qxe4 {[%clk
0:03:01.5]} 14... a4 {[%clk 0:02:48.5]} 15. Rad1 {[%clk 0:02:57]} 15... axb3
{[%clk 0:02:46.4]} 16. axb3 {[%clk 0:02:57.9]} 16... Ra2 {[%clk 0:02:45.7]} 17.
Qb1 {[%clk 0:02:47.1]} 17... Rfa8 {[%clk 0:02:44.8]} 18. Rfe1 {[%clk 0:02:39.6]}
18... Bb4 {[%clk 0:02:35.5]} 19. Re2 {[%clk 0:02:32.3]} 19... Bc3 {[%clk
0:02:12.3]} 20. Rc2 {[%clk 0:02:22.8]} 20... Rxb2 {[%clk 0:02:10.9]} 21. Rxb2
{[%clk 0:02:21.4]} 21... Bxb2 {[%clk 0:02:11.8]} 22. Qxb2 {[%clk 0:02:22.3]}
22... Qb4 {[%clk 0:02:11.7]} 23. g3 {[%clk 0:02:07.7]} 23... h6 {[%clk
0:02:09.6]} 24. Qc2 {[%clk 0:02:01.2]} 24... Ra3 {[%clk 0:02:06.8]} 25. Rd3
{[%clk 0:01:58.5]} 25... Ra1+ {[%clk 0:02:04.7]} 26. Rd1 {[%clk 0:01:58.2]}
26... Rxd1+ {[%clk 0:01:57.2]} 27. Qxd1 {[%clk 0:01:58.6]} 27... Qc3 {[%clk
0:01:57.9]} 28. Kg2 {[%clk 0:01:55.4]} 28... Nf6 {[%clk 0:01:41.7]} 29. Qb1
{[%clk 0:01:53.5]} 29... g5 {[%clk 0:01:34.7]} 30. h3 {[%clk 0:01:52.1]} 30...
Kg7 {[%clk 0:01:25.2]} 31. Qd1 {[%clk 0:01:44.5]} 31... Ne4 {[%clk 0:01:20.2]}
32. Qe2 {[%clk 0:01:44.7]} 32... f5 {[%clk 0:01:20]} 33. Qa2 {[%clk 0:01:30.9]}
33... g4 {[%clk 0:00:51.4]} 34. hxg4 {[%clk 0:01:31.1]} 34... fxg4 {[%clk
0:00:52.3]} 35. Ne5 {[%clk 0:01:29.4]} 35... Qxd4 {[%clk 0:00:52.5]} 36. Nxg4
{[%clk 0:01:22.4]} 36... Nd2 {[%clk 0:00:45]} 37. Ne3 {[%clk 0:00:59]} 37...
Qe4+ {[%clk 0:00:43.4]} 38. Kg1 {[%clk 0:00:57.9]} 38... Nf3+ {[%clk 0:00:43.5]}
39. Kf1 {[%clk 0:00:56]} 39... Nd4 {[%clk 0:00:40.5]} 40. Kg1 {[%clk 0:00:51]}
40... Kg6 {[%clk 0:00:38.1]} 41. Qa4 {[%clk 0:00:37]} 41... c6 {[%clk
0:00:29.8]} 42. Qa8 {[%clk 0:00:35.6]} 42... Nf3+ {[%clk 0:00:19.5]} 43. Kf1
{[%clk 0:00:34]} 43... Nh2+ {[%clk 0:00:19.5]} 44. Kg1 {[%clk 0:00:33.2]} 44...
Nf3+ {[%clk 0:00:19.8]} 45. Kf1 {[%clk 0:00:33.6]} 45... Kg7 {[%clk 0:00:16.8]}
46. Qb7+ {[%clk 0:00:32]} 46... Kf6 {[%clk 0:00:17.4]} 47. Qxb6 {[%clk
0:00:26.1]} 47... Nh2+ {[%clk 0:00:17.7]} 48. Kg1 {[%clk 0:00:25.9]} 48... Nf3+
{[%clk 0:00:18.2]} 49. Kf1 {[%clk 0:00:26.2]} 49... Nd4 {[%clk 0:00:13.7]} 50.
Qd8+ {[%clk 0:00:25]} 50... Kf7 {[%clk 0:00:13.9]} 51. Qd7+ {[%clk 0:00:23.2]}
51... Kf8 {[%clk 0:00:13.9]} 52. Qd8+ {[%clk 0:00:21.4]} 52... Kf7 {[%clk
0:00:13.9]} 53. Qd7+ {[%clk 0:00:18.6]} 53... Kf6 {[%clk 0:00:13]} 54. Qd8+
{[%clk 0:00:15.7]} 54... Kg7 {[%clk 0:00:05.8]} 55. Qe7+ {[%clk 0:00:14.1]}
55... Kg6 {[%clk 0:00:06.2]} 56. Qe8+ {[%clk 0:00:12.8]} 56... Kg7 {[%clk
0:00:06.8]} 57. Qe7+ {[%clk 0:00:12.5]} 57... Kg6 {[%clk 0:00:07.2]} 58. Qe8+
{[%clk 0:00:12.3]} 58... Kf6 {[%clk 0:00:03.1]} 59. Qd8+ {[%clk 0:00:10.2]}
1/2-1/2

[Event "*** SCC Grand Prix: Titled Tuesday Blitz"]
[Site "Chess.com"]
[Date "2020.10.13"]
[Round "9"]
[White "MrChampion_Coach"]
[Black "sergeikim"]
[Result "1-0"]
[WhiteElo "2377"]
[BlackElo "2497"]
[TimeControl "180+1"]
[EndTime "11:45:45 PDT"]
[Termination "MrChampion_Coach won by resignation"]

1. d4 {[%clk 0:03:00.9]} 1... Nf6 {[%clk 0:02:59.2]} 2. c4 {[%clk 0:03:00.3]}
2... g6 {[%clk 0:02:59.7]} 3. Nc3 {[%clk 0:03:00.2]} 3... Bg7 {[%clk 0:03:00.3]}
4. e4 {[%clk 0:03:00.7]} 4... d6 {[%clk 0:03:00.8]} 5. Be2 {[%clk 0:02:58.7]}
5... O-O {[%clk 0:03:01.3]} 6. Bg5 {[%clk 0:02:58.1]} 6... Nbd7 {[%clk
0:03:00.4]} 7. Qd2 {[%clk 0:02:56.4]} 7... e5 {[%clk 0:02:58.3]} 8. d5 {[%clk
0:02:55.7]} 8... Nc5 {[%clk 0:02:58]} 9. Bf3 {[%clk 0:02:54.9]} 9... a5 {[%clk
0:02:54.3]} 10. h4 {[%clk 0:02:32.6]} 10... h5 {[%clk 0:02:50.1]} 11. O-O-O
{[%clk 0:02:27.7]} 11... a4 {[%clk 0:02:48.9]} 12. Kb1 {[%clk 0:02:24.4]} 12...
c6 {[%clk 0:02:42.8]} 13. dxc6 {[%clk 0:02:11.6]} 13... bxc6 {[%clk 0:02:41.9]}
14. Qxd6 {[%clk 0:02:12]} 14... Qxd6 {[%clk 0:02:24.1]} 15. Rxd6 {[%clk
0:02:12.9]} 15... Ng4 {[%clk 0:02:15.7]} 16. Bxg4 {[%clk 0:01:53.1]} 16... Bxg4
{[%clk 0:02:14.5]} 17. Rxc6 {[%clk 0:01:38.6]} 17... Nd3 {[%clk 0:02:09.3]} 18.
f3 {[%clk 0:01:18]} 18... Be6 {[%clk 0:01:53.8]} 19. Nge2 {[%clk 0:00:57.3]}
19... Rfb8 {[%clk 0:01:52]} 20. Bc1 {[%clk 0:00:46.7]} 20... Nxb2 {[%clk
0:01:34.5]} 21. Bxb2 {[%clk 0:00:44.2]} 21... a3 {[%clk 0:01:34.4]} 22. Nb5
{[%clk 0:00:44]} 22... axb2 {[%clk 0:01:30.9]} 23. Nec3 {[%clk 0:00:41.2]} 23...
Bf8 {[%clk 0:01:22.3]} 24. Rd1 {[%clk 0:00:38.4]} 24... Bb4 {[%clk 0:01:17.8]}
25. Nd5 {[%clk 0:00:37.8]} 25... Bf8 {[%clk 0:01:11.4]} 26. Ndc7 {[%clk
0:00:33.8]} 26... Rc8 {[%clk 0:01:06]} 27. Rb6 {[%clk 0:00:18.2]} 27... Bc5
{[%clk 0:00:58.7]} 28. Rxe6 {[%clk 0:00:15.8]} 28... fxe6 {[%clk 0:00:57.2]} 29.
Nxe6 {[%clk 0:00:16.7]} 29... Bd4 {[%clk 0:00:48.3]} 30. Nbxd4 {[%clk
0:00:15.1]} 30... exd4 {[%clk 0:00:48]} 31. c5 {[%clk 0:00:16]} 31... Ra4 {[%clk
0:00:45.8]} 32. f4 {[%clk 0:00:13.3]} 32... d3 {[%clk 0:00:44.3]} 33. Ng5 {[%clk
0:00:11.6]} 33... Rxc5 {[%clk 0:00:42.7]} 34. Rxd3 {[%clk 0:00:11.9]} 34... Rb4
{[%clk 0:00:41]} 35. Rd8+ {[%clk 0:00:10]} 35... Kg7 {[%clk 0:00:39.1]} 36. Rd7+
{[%clk 0:00:10.2]} 36... Kh8 {[%clk 0:00:37]} 37. Rd8+ {[%clk 0:00:10.1]} 37...
Kg7 {[%clk 0:00:36.9]} 38. Ne6+ {[%clk 0:00:11]} 38... Kf6 {[%clk 0:00:36.1]}
39. Nxc5 {[%clk 0:00:11.9]} 39... Rc4 {[%clk 0:00:34.6]} 40. Nd3 {[%clk
0:00:10.4]} 40... Rxe4 {[%clk 0:00:33.2]} 41. Kxb2 {[%clk 0:00:10]} 41... Re3
{[%clk 0:00:32.4]} 42. Ne5 {[%clk 0:00:07.1]} 42... Re4 {[%clk 0:00:30.2]} 43.
Rf8+ {[%clk 0:00:06.5]} 43... Kg7 {[%clk 0:00:28.4]} 44. Rf7+ {[%clk 0:00:06.4]}
44... Kg8 {[%clk 0:00:27.9]} 45. Rf6 {[%clk 0:00:07.3]} 45... Kh7 {[%clk
0:00:27]} 46. g3 {[%clk 0:00:06.8]} 46... Re3 {[%clk 0:00:26.6]} 47. Rxg6 {[%clk
0:00:06.8]} 47... Re2+ {[%clk 0:00:26.7]} 48. Kb3 {[%clk 0:00:06.7]} 48... Re3+
{[%clk 0:00:26]} 49. Kb4 {[%clk 0:00:06.7]} 49... Re4+ {[%clk 0:00:25.5]} 50.
Kb5 {[%clk 0:00:06.9]} 50... Re3 {[%clk 0:00:24.5]} 51. a4 {[%clk 0:00:07.8]}
51... Rb3+ {[%clk 0:00:23.9]} 52. Ka6 {[%clk 0:00:08.3]} 52... Rb4 {[%clk
0:00:22.7]} 53. a5 {[%clk 0:00:08.5]} 53... Rb3 {[%clk 0:00:22.5]} 54. Rg5
{[%clk 0:00:09.4]} 54... Kh6 {[%clk 0:00:21.8]} 55. Nf7+ {[%clk 0:00:09.7]}
55... Kh7 {[%clk 0:00:21.7]} 56. Nd6 {[%clk 0:00:10.1]} 56... Kh6 {[%clk
0:00:21.6]} 57. Ne8 {[%clk 0:00:10]} 57... Rb4 {[%clk 0:00:20.6]} 58. Nf6 {[%clk
0:00:09.7]} 58... Rc4 {[%clk 0:00:18.6]} 59. Ka7 {[%clk 0:00:09.5]} 59... Rb4
{[%clk 0:00:18.1]} 60. Nxh5 {[%clk 0:00:08]} 60... Rb3 {[%clk 0:00:17.2]} 61. f5
{[%clk 0:00:07.8]} 61... Rb5 {[%clk 0:00:14.8]} 62. a6 {[%clk 0:00:07.4]} 62...
Rb7+ {[%clk 0:00:11.7]} 63. axb7 {[%clk 0:00:06.6]} 1-0

[Event "*** SCC Grand Prix: Titled Tuesday Blitz"]
[Site "Chess.com"]
[Date "2020.10.13"]
[Round "9"]
[White "canary2016"]
[Black "DonBroca"]
[Result "0-1"]
[WhiteElo "1952"]
[BlackElo "2207"]
[TimeControl "180+1"]
[EndTime "11:45:52 PDT"]
[Termination "DonBroca won on time"]

1. Nf3 {[%clk 0:03:00.9]} 1... g6 {[%clk 0:02:59.1]} 2. g3 {[%clk 0:02:58.2]}
2... Bg7 {[%clk 0:02:59.5]} 3. Bg2 {[%clk 0:02:58.2]} 3... Nf6 {[%clk 0:02:58]}
4. O-O {[%clk 0:02:58.2]} 4... O-O {[%clk 0:02:58.5]} 5. d4 {[%clk 0:02:56]}
5... d6 {[%clk 0:02:58.3]} 6. c4 {[%clk 0:02:55.4]} 6... Nbd7 {[%clk 0:02:58.6]}
7. Nc3 {[%clk 0:02:55.2]} 7... e5 {[%clk 0:02:59]} 8. e4 {[%clk 0:02:54.9]} 8...
Re8 {[%clk 0:02:56.7]} 9. h3 {[%clk 0:02:53.8]} 9... c6 {[%clk 0:02:56.3]} 10.
Re1 {[%clk 0:02:50.6]} 10... Qc7 {[%clk 0:02:56.4]} 11. Be3 {[%clk 0:02:33.8]}
11... h6 {[%clk 0:02:53.9]} 12. Rc1 {[%clk 0:02:32.8]} 12... Kh7 {[%clk
0:02:50.1]} 13. a3 {[%clk 0:02:30.6]} 13... a5 {[%clk 0:02:42.3]} 14. b4 {[%clk
0:02:21.3]} 14... b6 {[%clk 0:02:37.2]} 15. Qd2 {[%clk 0:02:12.7]} 15... Ba6
{[%clk 0:02:37]} 16. b5 {[%clk 0:02:10.1]} 16... Bb7 {[%clk 0:02:30.7]} 17. a4
{[%clk 0:02:08.7]} 17... c5 {[%clk 0:02:29.5]} 18. d5 {[%clk 0:02:04.1]} 18...
Nf8 {[%clk 0:02:25]} 19. Qc2 {[%clk 0:02:01.8]} 19... g5 {[%clk 0:02:22.6]} 20.
Ne2 {[%clk 0:01:53.2]} 20... Ng6 {[%clk 0:02:22.4]} 21. Bd2 {[%clk 0:01:51.8]}
21... Nh5 {[%clk 0:02:12]} 22. Bc3 {[%clk 0:01:46.1]} 22... Bc8 {[%clk
0:02:10.8]} 23. g4 {[%clk 0:01:36.5]} 23... Nhf4 {[%clk 0:02:09.3]} 24. Nxf4
{[%clk 0:01:36.3]} 24... Nxf4 {[%clk 0:02:09.2]} 25. Bd2 {[%clk 0:01:36.5]}
25... Rg8 {[%clk 0:02:03.3]} 26. Be3 {[%clk 0:01:22.9]} 26... Bf6 {[%clk
0:02:00.2]} 27. Nd2 {[%clk 0:01:22.5]} 27... Bd7 {[%clk 0:01:58.4]} 28. Nf1
{[%clk 0:01:22.2]} 28... Rg6 {[%clk 0:01:45.5]} 29. Ng3 {[%clk 0:01:21.9]} 29...
Rag8 {[%clk 0:01:44.2]} 30. Red1 {[%clk 0:00:59.8]} 30... Qc8 {[%clk 0:01:27.9]}
31. Re1 {[%clk 0:00:44.1]} 31... Be7 {[%clk 0:01:10.4]} 32. Qd1 {[%clk
0:00:39.7]} 32... f6 {[%clk 0:01:06.3]} 33. f3 {[%clk 0:00:36.5]} 33... R6g7
{[%clk 0:01:05.1]} 34. Qc2 {[%clk 0:00:32.6]} 34... Be8 {[%clk 0:01:00.4]} 35.
Qd2 {[%clk 0:00:31.5]} 35... Bg6 {[%clk 0:00:57.8]} 36. Qc2 {[%clk 0:00:29.7]}
36... Qe8 {[%clk 0:00:56.4]} 37. Qd2 {[%clk 0:00:23.4]} 37... h5 {[%clk
0:00:55.2]} 38. Bxf4 {[%clk 0:00:19.4]} 38... gxf4 {[%clk 0:00:52.6]} 39. Nf5
{[%clk 0:00:18.5]} 39... Bxf5 {[%clk 0:00:50.6]} 40. exf5 {[%clk 0:00:18.3]}
40... Rh8 {[%clk 0:00:44.4]} 41. Kf2 {[%clk 0:00:17.5]} 41... Kg8 {[%clk
0:00:43.9]} 42. Rh1 {[%clk 0:00:16.3]} 42... Rgh7 {[%clk 0:00:41.8]} 43. Rcg1
{[%clk 0:00:15.2]} 43... hxg4 {[%clk 0:00:40.6]} 44. hxg4 {[%clk 0:00:14.2]}
44... Qf7 {[%clk 0:00:38.2]} 45. Ke2 {[%clk 0:00:10]} 45... Rh2 {[%clk 0:00:36]}
46. Qe1 {[%clk 0:00:07.4]} 46... Qh7 {[%clk 0:00:32.6]} 47. Qf1 {[%clk
0:00:06.2]} 47... Qg7 {[%clk 0:00:26.2]} 48. Rxh2 {[%clk 0:00:06.1]} 48... Rxh2
{[%clk 0:00:27.1]} 49. Rh1 {[%clk 0:00:06.1]} 49... Qh6 {[%clk 0:00:27.2]} 50.
Rxh2 {[%clk 0:00:05.6]} 50... Qxh2 {[%clk 0:00:27.5]} 51. Qh1 {[%clk 0:00:06.2]}
51... Qg3 {[%clk 0:00:20.9]} 52. Qf1 {[%clk 0:00:06.2]} 52... Bf8 {[%clk
0:00:19.2]} 53. Qh1 {[%clk 0:00:05.8]} 53... Bg7 {[%clk 0:00:17]} 54. Qh3 {[%clk
0:00:05.7]} 54... Bh6 {[%clk 0:00:15.9]} 55. Qxg3 {[%clk 0:00:05.3]} 55... fxg3
{[%clk 0:00:16.8]} 56. Bf1 {[%clk 0:00:05]} 56... Kg7 {[%clk 0:00:15.5]} 57. Bg2
{[%clk 0:00:05.2]} 57... Bc1 {[%clk 0:00:15]} 58. Bf1 {[%clk 0:00:05.3]} 58...
Kh6 {[%clk 0:00:15]} 59. Bg2 {[%clk 0:00:05.4]} 59... Kg5 {[%clk 0:00:14.2]} 60.
Bf1 {[%clk 0:00:04.6]} 60... Kf4 {[%clk 0:00:14.6]} 61. Bg2 {[%clk 0:00:04.7]}
61... Bb2 {[%clk 0:00:14.2]} 62. Bf1 {[%clk 0:00:04.7]} 62... e4 {[%clk
0:00:14.3]} 63. fxe4 {[%clk 0:00:03.8]} 63... Kxe4 {[%clk 0:00:14.6]} 64. Bg2+
{[%clk 0:00:02.6]} 64... Kd4 {[%clk 0:00:14.4]} 65. Kf3 {[%clk 0:00:02.5]} 65...
Kxc4 {[%clk 0:00:12.7]} 66. Kxg3 {[%clk 0:00:02.7]} 66... Kb4 {[%clk 0:00:12.3]}
67. Kf4 {[%clk 0:00:02.8]} 67... Bc1+ {[%clk 0:00:10.9]} 68. Ke4 {[%clk
0:00:02.2]} 68... Kxa4 {[%clk 0:00:11.4]} 69. Bf3 {[%clk 0:00:01.2]} 69... Kb3
{[%clk 0:00:11]} 70. Be2 {[%clk 0:00:01.3]} 70... Kb4 {[%clk 0:00:11.1]} 71. Bd3
{[%clk 0:00:01.4]} 71... a4 {[%clk 0:00:11.4]} 72. Bc2 {[%clk 0:00:01.4]} 72...
Kxb5 {[%clk 0:00:11.4]} 0-1

[Event "*** SCC Grand Prix: Titled Tuesday Blitz"]
[Site "Chess.com"]
[Date "2020.10.13"]
[Round "9"]
[White "Inga83"]
[Black "Gusarov91"]
[Result "0-1"]
[WhiteElo "2401"]
[BlackElo "2570"]
[TimeControl "180+1"]
[EndTime "11:45:53 PDT"]
[Termination "Gusarov91 won by resignation"]

1. d4 {[%clk 0:03:00.9]} 1... g6 {[%clk 0:02:55.4]} 2. c4 {[%clk 0:02:57]} 2...
Bg7 {[%clk 0:02:55.5]} 3. Nc3 {[%clk 0:02:54.6]} 3... c5 {[%clk 0:02:55.9]} 4.
d5 {[%clk 0:02:54.5]} 4... d6 {[%clk 0:02:56.1]} 5. Qc2 {[%clk 0:02:53.2]} 5...
Nf6 {[%clk 0:02:56]} 6. e4 {[%clk 0:02:52.8]} 6... O-O {[%clk 0:02:55.9]} 7. Be2
{[%clk 0:02:52.9]} 7... e6 {[%clk 0:02:55.5]} 8. Nf3 {[%clk 0:02:51.7]} 8...
exd5 {[%clk 0:02:55.9]} 9. cxd5 {[%clk 0:02:48.6]} 9... Bg4 {[%clk 0:02:56.1]}
10. O-O {[%clk 0:02:47.3]} 10... Bxf3 {[%clk 0:02:56.4]} 11. Bxf3 {[%clk
0:02:45.7]} 11... Nbd7 {[%clk 0:02:57.3]} 12. Be2 {[%clk 0:02:45.5]} 12... a6
{[%clk 0:02:56.7]} 13. a4 {[%clk 0:02:44.6]} 13... Re8 {[%clk 0:02:56.7]} 14. h3
{[%clk 0:02:36.7]} 14... Qc7 {[%clk 0:02:56.5]} 15. Bf4 {[%clk 0:02:32.7]} 15...
Rad8 {[%clk 0:02:50.9]} 16. Rfe1 {[%clk 0:02:28.5]} 16... c4 {[%clk 0:02:35.1]}
17. Rac1 {[%clk 0:02:23.4]} 17... Nc5 {[%clk 0:02:33.9]} 18. Bxc4 {[%clk
0:02:23.2]} 18... Qa5 {[%clk 0:02:20.2]} 19. Bd2 {[%clk 0:02:18.1]} 19... Qb6
{[%clk 0:02:18.4]} 20. Rb1 {[%clk 0:02:05.5]} 20... Rc8 {[%clk 0:02:10.1]} 21.
b4 {[%clk 0:02:03.4]} 21... Ncd7 {[%clk 0:02:05.7]} 22. Bf1 {[%clk 0:01:55.4]}
22... Nh5 {[%clk 0:01:55.7]} 23. Qb3 {[%clk 0:01:53.8]} 23... Bd4 {[%clk
0:01:54.2]} 24. Nd1 {[%clk 0:01:53.5]} 24... Ne5 {[%clk 0:01:46.7]} 25. Ne3
{[%clk 0:01:48.3]} 25... Nf6 {[%clk 0:01:29.2]} 26. f3 {[%clk 0:01:31.4]} 26...
Nh5 {[%clk 0:01:26.6]} 27. Kh2 {[%clk 0:01:30.4]} 27... f5 {[%clk 0:01:23.1]}
28. exf5 {[%clk 0:01:29.1]} 28... Nxf3+ {[%clk 0:01:23.3]} 29. gxf3 {[%clk
0:01:28]} 29... Nf4 {[%clk 0:01:11.5]} 30. Bg2 {[%clk 0:01:14.8]} 30... Be5
{[%clk 0:01:08.3]} 31. Kh1 {[%clk 0:01:10.6]} 31... Nxg2 {[%clk 0:01:08.5]} 32.
Kxg2 {[%clk 0:01:09]} 32... Qd4 {[%clk 0:01:08.5]} 33. Rbd1 {[%clk 0:00:53.4]}
33... Qh4 {[%clk 0:01:08.4]} 34. Nf1 {[%clk 0:00:50.2]} 34... gxf5 {[%clk
0:01:06.1]} 35. f4 {[%clk 0:00:50.3]} 35... Bg7 {[%clk 0:01:00.8]} 36. Qg3
{[%clk 0:00:46.8]} 36... Qh5 {[%clk 0:00:59.6]} 37. Rxe8+ {[%clk 0:00:46.1]}
37... Rxe8 {[%clk 0:00:58.5]} 38. Re1 {[%clk 0:00:44.7]} 38... Re2+ {[%clk
0:00:57.8]} 39. Rxe2 {[%clk 0:00:44.2]} 39... Qxe2+ {[%clk 0:00:58.7]} 40. Kh1
{[%clk 0:00:44.2]} 40... Qxf1+ {[%clk 0:00:58.4]} 41. Qg1 {[%clk 0:00:39.9]}
41... Qxh3+ {[%clk 0:00:57.8]} 42. Qh2 {[%clk 0:00:39.6]} 42... Qd3 {[%clk
0:00:48.1]} 43. Qg2 {[%clk 0:00:38.6]} 43... Kf7 {[%clk 0:00:44.2]} 44. Kh2
{[%clk 0:00:37.4]} 44... Bf6 {[%clk 0:00:42.6]} 45. Qf2 {[%clk 0:00:37]} 45...
Qxd5 {[%clk 0:00:41.6]} 46. Be3 {[%clk 0:00:34.9]} 46... Qb3 {[%clk 0:00:39.2]}
47. Bd4 {[%clk 0:00:33.7]} 47... Be7 {[%clk 0:00:31.7]} 48. Qg2 {[%clk
0:00:31.4]} 48... Qxb4 {[%clk 0:00:20.7]} 49. Qd5+ {[%clk 0:00:30.3]} 49... Ke8
{[%clk 0:00:18.8]} 50. Qg8+ {[%clk 0:00:23.6]} 50... Kd7 {[%clk 0:00:19.2]} 51.
Qd5 {[%clk 0:00:23.8]} 51... Qd2+ {[%clk 0:00:19.2]} 52. Kh3 {[%clk 0:00:22.8]}
52... Qxf4 {[%clk 0:00:18.1]} 53. Qxb7+ {[%clk 0:00:21.4]} 53... Ke6 {[%clk
0:00:18.7]} 54. Qc8+ {[%clk 0:00:21]} 54... Kf7 {[%clk 0:00:18.3]} 55. Qh8
{[%clk 0:00:19.9]} 55... Qg4+ {[%clk 0:00:18.3]} 56. Kh2 {[%clk 0:00:19.8]}
56... Qg8 {[%clk 0:00:17.6]} 57. Qxg8+ {[%clk 0:00:17.9]} 57... Kxg8 {[%clk
0:00:18.5]} 58. Kg3 {[%clk 0:00:18.6]} 58... Kf7 {[%clk 0:00:19]} 59. Kf4 {[%clk
0:00:18.7]} 59... Ke6 {[%clk 0:00:19.7]} 60. Bg1 {[%clk 0:00:18.4]} 60... Bf6
{[%clk 0:00:20.3]} 61. Bh2 {[%clk 0:00:18.4]} 61... h5 {[%clk 0:00:20.8]} 62.
Kf3 {[%clk 0:00:18.1]} 62... Be5 {[%clk 0:00:21.1]} 63. Bg1 {[%clk 0:00:17.9]}
63... h4 {[%clk 0:00:21.7]} 64. Kg2 {[%clk 0:00:16.8]} 64... Kf6 {[%clk
0:00:20.9]} 65. Kh3 {[%clk 0:00:15.7]} 65... Kg5 {[%clk 0:00:21.4]} 66. Bf2
{[%clk 0:00:16]} 66... Bg3 {[%clk 0:00:21.7]} 67. Bb6 {[%clk 0:00:15.1]} 67...
d5 {[%clk 0:00:21.5]} 68. Bd8+ {[%clk 0:00:14.5]} 68... Kf4 {[%clk 0:00:21.7]}
69. Bc7+ {[%clk 0:00:12.4]} 69... Ke3 {[%clk 0:00:21.8]} 70. Bb6+ {[%clk
0:00:12.2]} 70... Ke2 {[%clk 0:00:22.3]} 0-1

[Event "*** SCC Grand Prix: Titled Tuesday Blitz"]
[Site "Chess.com"]
[Date "2020.10.13"]
[Round "9"]
[White "crescentmoon2411"]
[Black "LionTheLeon_06"]
[Result "1/2-1/2"]
[WhiteElo "2802"]
[BlackElo "2644"]
[TimeControl "180+1"]
[EndTime "11:45:58 PDT"]
[Termination "Game drawn by repetition"]

1. e4 {[%clk 0:03:00.9]} 1... c5 {[%clk 0:02:59.2]} 2. Nf3 {[%clk 0:03:00.7]}
2... d6 {[%clk 0:02:59.6]} 3. c3 {[%clk 0:02:57.4]} 3... Nf6 {[%clk 0:02:59.2]}
4. Bd3 {[%clk 0:02:53.2]} 4... g6 {[%clk 0:02:56.6]} 5. O-O {[%clk 0:02:51.7]}
5... Bg7 {[%clk 0:02:56]} 6. Re1 {[%clk 0:02:52]} 6... O-O {[%clk 0:02:55.1]} 7.
h3 {[%clk 0:02:50.6]} 7... Nc6 {[%clk 0:02:47.6]} 8. Bc2 {[%clk 0:02:36.6]} 8...
e5 {[%clk 0:02:45.3]} 9. d3 {[%clk 0:02:35.2]} 9... h6 {[%clk 0:02:44.7]} 10.
Nbd2 {[%clk 0:02:31]} 10... Be6 {[%clk 0:02:44.6]} 11. Nc4 {[%clk 0:02:28.5]}
11... b5 {[%clk 0:02:40.8]} 12. Ne3 {[%clk 0:02:28.2]} 12... a6 {[%clk
0:02:40.7]} 13. Bb3 {[%clk 0:02:20.7]} 13... Qd7 {[%clk 0:02:24.4]} 14. a4
{[%clk 0:02:15.9]} 14... Na5 {[%clk 0:02:02.4]} 15. Bxe6 {[%clk 0:02:01.8]}
15... Qxe6 {[%clk 0:02:03.3]} 16. axb5 {[%clk 0:02:01.3]} 16... axb5 {[%clk
0:02:04.2]} 17. Nd2 {[%clk 0:01:57.6]} 17... Kh7 {[%clk 0:01:27.2]} 18. Qc2
{[%clk 0:01:33]} 18... Rfc8 {[%clk 0:01:05.1]} 19. Ndf1 {[%clk 0:01:25]} 19...
d5 {[%clk 0:01:00.3]} 20. exd5 {[%clk 0:01:24.5]} 20... Nxd5 {[%clk 0:01:00.9]}
21. Nxd5 {[%clk 0:01:24.7]} 21... Qxd5 {[%clk 0:01:01.8]} 22. Ne3 {[%clk
0:01:16.9]} 22... Qb3 {[%clk 0:01:00.2]} 23. Ra3 {[%clk 0:01:05]} 23... Qe6
{[%clk 0:00:46.8]} 24. Bd2 {[%clk 0:01:02.3]} 24... b4 {[%clk 0:00:34.5]} 25.
Raa1 {[%clk 0:00:55.9]} 25... Qd7 {[%clk 0:00:19.7]} 26. Ng4 {[%clk 0:00:42.1]}
26... b3 {[%clk 0:00:20]} 27. Qb1 {[%clk 0:00:41.7]} 27... Qd6 {[%clk
0:00:20.5]} 28. Ne3 {[%clk 0:00:15.3]} 28... c4 {[%clk 0:00:17.3]} 29. d4 {[%clk
0:00:12.4]} 29... exd4 {[%clk 0:00:15.9]} 30. cxd4 {[%clk 0:00:13.3]} 30... Qd8
{[%clk 0:00:10.6]} 31. Bc3 {[%clk 0:00:11.4]} 31... Nc6 {[%clk 0:00:09.3]} 32.
Rxa8 {[%clk 0:00:11.1]} 32... Rxa8 {[%clk 0:00:09.6]} 33. Nxc4 {[%clk 0:00:09]}
33... Nxd4 {[%clk 0:00:09.7]} 34. Qd3 {[%clk 0:00:06.4]} 34... Nc6 {[%clk
0:00:07.2]} 35. Qxd8 {[%clk 0:00:06.3]} 35... Rxd8 {[%clk 0:00:07.4]} 36. Bxg7
{[%clk 0:00:06.6]} 36... Kxg7 {[%clk 0:00:08.3]} 37. Re3 {[%clk 0:00:07]} 37...
Nd4 {[%clk 0:00:08.1]} 38. Na5 {[%clk 0:00:04.4]} 38... Ra8 {[%clk 0:00:07.8]}
39. Nxb3 {[%clk 0:00:03.7]} 39... Ra1+ {[%clk 0:00:08]} 40. Kh2 {[%clk
0:00:03.8]} 40... Nxb3 {[%clk 0:00:08.4]} 41. Rxb3 {[%clk 0:00:04.6]} 41... Rc1
{[%clk 0:00:08.7]} 42. Kg3 {[%clk 0:00:05]} 42... Rc2 {[%clk 0:00:09]} 43. Rb8
{[%clk 0:00:05]} 43... h5 {[%clk 0:00:09.1]} 44. h4 {[%clk 0:00:04.9]} 44... Kf6
{[%clk 0:00:09.1]} 45. b4 {[%clk 0:00:05.2]} 45... Ke6 {[%clk 0:00:09.2]} 46. b5
{[%clk 0:00:05.2]} 46... Rb2 {[%clk 0:00:09.5]} 47. b6 {[%clk 0:00:05.1]} 47...
Rb3+ {[%clk 0:00:09.4]} 48. f3 {[%clk 0:00:05.2]} 48... Kf6 {[%clk 0:00:08.4]}
49. Kf2 {[%clk 0:00:04.9]} 49... Rb2+ {[%clk 0:00:08.6]} 50. Kg3 {[%clk
0:00:05.3]} 50... Rb3 {[%clk 0:00:08.8]} 51. b7 {[%clk 0:00:05.5]} 51... Rb2
{[%clk 0:00:09]} 52. Kf4 {[%clk 0:00:05.5]} 52... Rb4+ {[%clk 0:00:07.5]} 53.
Ke3 {[%clk 0:00:05.9]} 53... Rb3+ {[%clk 0:00:07.9]} 54. Kd4 {[%clk 0:00:06.3]}
54... Rb2 {[%clk 0:00:08.4]} 55. g4 {[%clk 0:00:05.8]} 55... hxg4 {[%clk
0:00:07.8]} 56. fxg4 {[%clk 0:00:06.7]} 56... Kg7 {[%clk 0:00:08]} 57. Kc5
{[%clk 0:00:06.4]} 57... Rb1 {[%clk 0:00:07.4]} 58. Kd6 {[%clk 0:00:06.4]} 58...
Rd1+ {[%clk 0:00:07.3]} 59. Ke5 {[%clk 0:00:06.8]} 59... Re1+ {[%clk 0:00:07.5]}
60. Kf4 {[%clk 0:00:06.9]} 60... Rb1 {[%clk 0:00:07.7]} 61. h5 {[%clk
0:00:06.2]} 61... gxh5 {[%clk 0:00:07.6]} 62. gxh5 {[%clk 0:00:07.1]} 62... f5
{[%clk 0:00:06.4]} 63. Kg5 {[%clk 0:00:07.1]} 63... Kh7 {[%clk 0:00:06.2]} 64.
Kxf5 {[%clk 0:00:06.5]} 64... Rb5+ {[%clk 0:00:05.9]} 65. Ke6 {[%clk 0:00:06.5]}
65... Rb1 {[%clk 0:00:05.5]} 66. Kd6 {[%clk 0:00:05.8]} 66... Rd1+ {[%clk
0:00:05.4]} 67. Kc6 {[%clk 0:00:06.2]} 67... Rc1+ {[%clk 0:00:05.8]} 68. Kd6
{[%clk 0:00:06.8]} 68... Rd1+ {[%clk 0:00:06.2]} 69. Kc6 {[%clk 0:00:07.3]}
69... Rc1+ {[%clk 0:00:06.8]} 70. Kd6 {[%clk 0:00:08]} 70... Rd1+ {[%clk
0:00:07.2]} 1/2-1/2